[Event "EWIBCC 2019"]
[Site "Monte-Carlo"]
[Date "2019.11.29"]
[Round "6.1"]
[White "Bodnaruk, Anastasia"]
[Black "Gaponenko, Inna"]
[Result "0-1"]
[ECO "B79"]
[WhiteElo "2412"]
[BlackElo "2427"]
[Annotator "NA"]
[PlyCount "70"]
[EventDate "2019.11.29"]
[EventType "swiss"]
[EventCountry "MNC"]
[SourceTitle "playchess.com"]
[Source "ChessBase"]
[SourceQuality "1"]
[TimeControl "180+2"]

1. e4 {[%emt 0:00:00]} c5 {[%emt 0:00:00]} 2. Nf3 {[%emt 0:00:00]} d6 {[%emt 0:00:00]} 3. d4 {[%emt 0:00:01]} cxd4 {[%emt 0:00:00]} 4. Nxd4 {[%emt 0:00:01]} Nf6 {[%emt 0:00:01]} 5. Nc3 {[%emt 0:00:01]} g6 {[%emt 0:00:01]} 6. Be3 {[%emt 0:00:06]} Bg7 {[%emt 0:00:01]} 7. f3 {[%emt 0:00:05]} Nc6 {[%emt 0:00:01]} 8. Bc4 {[%emt 0:00:04]} O-O {[%emt 0:00:03]} 9. Qd2 {[%emt 0:00:03]} Bd7 {[%emt 0:00:01]} 10. h4 {[%emt 0:00:09]} Qa5 {[%emt 0:00:02]} 11. Bb3 {[%emt 0:00:23]} Ne5 {[%emt 0:00:12]} 12. O-O-O {[%emt 0:00:09]} Rfc8 {[%emt 0:00:01]} 13. g4 {[%emt 0:00:45]} b5 {[%emt 0:00:10]} 14. h5 {[%emt 0:00:20]} b4 {[%emt 0:00:02]} 15. Nd5 {[%emt 0:00:15]} Nxd5 {[%emt 0:00:03]} 16. Bxd5 {[%emt 0:00:16]} Nc4 {[%emt 0:00:02]} 17. Bxc4 {[%emt 0:00:19]} Rxc4 {[%emt 0:00:01]} 18. Kb1 {[%emt 0:00:04]} Qe5 {[%emt 0:00:17]} 19. hxg6 {[%emt 0:00:11]} hxg6 {[%emt 0:00:07]} 20. Qd3 {[%emt 0:00:12]} Rac8 {[%emt 0:00:24]} 21. Rd2 {[%emt 0:00:03]} d5 {[%emt 0:00:09]} 22. exd5 {[%emt 0:00:06]} Qxd5 {[%emt 0:00:02]} 23. Nb3 {[%emt 0:00:05]} Qxd3 {[%emt 0:00:05]} 24. cxd3 {[%emt 0:00:02]} R4c7 {[%emt 0:00:05]} 25. d4 {[%emt 0:00:00]} Bc6 {[%emt 0:00:36]} 26. Rf1 {[%emt 0:00:03]} Bd5 {[%emt 0:00:04]} 27. Nc5 {[%emt 0:00:01]} a5 {[%emt 0:00:07]} 28. f4 {[%emt 0:00:03]} Rc6 {[%emt 0:00:04]} 29. f5 {[%emt 0:00:02]} e5 {[%emt 0:00:09]} 30. fxe6 {[%emt 0:00:05]} fxe6 {[%emt 0:00:02]} 31. Nd3 {[%emt 0:00:03]} Be4 {[%emt 0:00:06]} 32. Rfd1 {[%emt 0:00:02]} Rc4 {[%emt 0:00:09]} 33. Ka1 {[%emt 0:00:02]} Bxd4 {[%emt 0:00:08]} 34. Bxd4 {[%emt 0:00:03]} Rxd4 {[%emt 0:00:01]} 35. b3 {[%emt 0:00:02]} Rcd8 {[%emt 0:00:04]} 0-1

[Event "EWIBCC 2019"]
[Site "Monte-Carlo"]
[Date "2019.11.29"]
[Round "6.5"]
[White "Michna, Marta"]
[Black "Babiy, Olga"]
[Result "1-0"]
[ECO "A07"]
[WhiteElo "2366"]
[BlackElo "2249"]
[Annotator "NA"]
[PlyCount "73"]
[EventDate "2019.11.29"]
[EventType "swiss"]
[EventCountry "MNC"]
[SourceTitle "playchess.com"]
[Source "ChessBase"]
[SourceQuality "1"]
[TimeControl "180+2"]

1. Nf3 {[%emt 0:00:00]} d5 {[%emt 0:00:00]} 2. g3 {[%emt 0:00:01]} Bg4 {[%emt 0:00:06]} 3. Bg2 {[%emt 0:00:01]} c6 {[%emt 0:00:00]} 4. d3 {[%emt 0:00:04]} Nd7 {[%emt 0:00:04]} 5. O-O {[%emt 0:00:13]} e6 {[%emt 0:00:01]} 6. Nbd2 {[%emt 0:00:14]} Bd6 {[%emt 0:00:06]} 7. h3 {[%emt 0:00:08]} Bh5 {[%emt 0:00:08]} 8. e4 {[%emt 0:00:03]} Ne7 {[%emt 0:00:06]} 9. c3 {[%emt 0:00:12]} O-O {[%emt 0:00:02]} 10. Qc2 {[%emt 0:00:08]} b5 {[%emt 0:00:16]} 11. a4 {[%emt 0:00:21]} Qb6 {[%emt 0:00:14]} 12. a5 {[%emt 0:00:26]} Qc7 {[%emt 0:00:05]} 13. Re1 {[%emt 0:00:08]} e5 {[%emt 0:00:18]} 14. Nh4 {[%emt 0:00:11]} Rad8 {[%emt 0:00:23]} 15. g4 {[%emt 0:00:33]} Bg6 {[%emt 0:00:01]} 16. Nf5 {[%emt 0:00:10]} Nc5 {[%emt 0:00:01]} 17. Nf1 {[%emt 0:00:10]} f6 {[%emt 0:00:08]} 18. N1g3 {[%emt 0:00:03]} Bf7 {[%emt 0:00:03]} 19. Nxd6 {[%emt 0:00:08]} Qxd6 {[%emt 0:00:02]} 20. Nf5 {[%emt 0:00:01]} Nxf5 {[%emt 0:00:03]} 21. exf5 {[%emt 0:00:03]} Rfe8 {[%emt 0:00:22]} 22. Bd2 {[%emt 0:00:02]} h6 {[%emt 0:00:13]} 23. b4 {[%emt 0:00:01]} Nd7 {[%emt 0:00:05]} 24. Re2 {[%emt 0:00:05]} c5 {[%emt 0:00:02]} 25. Rae1 {[%emt 0:00:01]} c4 {[%emt 0:00:07]} 26. dxc4 {[%emt 0:00:02]} dxc4 {[%emt 0:00:07]} 27. Be3 {[%emt 0:00:01]} Qc7 {[%emt 0:00:11]} 28. Rd2 {[%emt 0:00:01]} Nf8 {[%emt 0:00:10]} 29. Red1 {[%emt 0:00:01]} Nh7 {[%emt 0:00:05]} 30. Rxd8 Rxd8 {[%emt 0:00:01]} 31. Rxd8+ {[%emt 0:00:02]} Qxd8 {[%emt 0:00:01]} 32. Bxa7 {[%emt 0:00:02]} h5 {[%emt 0:00:13]} 33. Be3 {[%emt 0:00:01]} hxg4 {[%emt 0:00:02]} 34. hxg4 {[%emt 0:00:01]} Nf8 {[%emt 0:00:01]} 35. a6 {[%emt 0:00:01]} Bd5 {[%emt 0:00:10]} 36. Qd1 {[%emt 0:00:01]} e4 {[%emt 0:00:01]} 37. Bxe4 {[%emt 0:00:03]} 1-0

[Event "EWIBCC 2019"]
[Site "Monte-Carlo"]
[Date "2019.11.29"]
[Round "6.6"]
[White "Buksa, Nataliya"]
[Black "Kazarian, Anna-Maja"]
[Result "1-0"]
[ECO "B19"]
[WhiteElo "2410"]
[BlackElo "2109"]
[Annotator "NA"]
[PlyCount "94"]
[EventDate "2019.11.29"]
[EventType "swiss"]
[EventCountry "MNC"]
[SourceTitle "playchess.com"]
[Source "ChessBase"]
[SourceQuality "1"]
[TimeControl "180+2"]

1. e4 c6 2. d4 {[%emt 0:00:00]} d5 {[%emt 0:00:00]} 3. Nc3 {[%emt 0:00:00]} dxe4 {[%emt 0:00:00]} 4. Nxe4 {[%emt 0:00:01]} Bf5 {[%emt 0:00:00]} 5. Ng3 {[%emt 0:00:01]} Bg6 {[%emt 0:00:01]} 6. h4 {[%emt 0:00:01]} h6 {[%emt 0:00:00]} 7. Nf3 {[%emt 0:00:02]} Nd7 {[%emt 0:00:01]} 8. h5 {[%emt 0:00:02]} Bh7 {[%emt 0:00:01]} 9. Bd3 {[%emt 0:00:00]} Bxd3 {[%emt 0:00:01]} 10. Qxd3 {[%emt 0:00:02]} e6 {[%emt 0:00:02]} 11. Bd2 {[%emt 0:00:00]} Ngf6 {[%emt 0:00:02]} 12. O-O-O {[%emt 0:00:02]} Be7 {[%emt 0:00:01]} 13. Kb1 {[%emt 0:00:01]} O-O {[%emt 0:00:02]} 14. Rhe1 {[%emt 0:00:01]} Qc7 {[%emt 0:00:13]} 15. Qe2 {[%emt 0:00:10]} Rad8 {[%emt 0:00:29]} 16. Ne5 {[%emt 0:00:16]} c5 {[%emt 0:00:09]} 17. Ng6 {[%emt 0:00:24]} fxg6 {[%emt 0:00:54]} 18. Qxe6+ {[%emt 0:00:01]} Kh7 {[%emt 0:00:00]} 19. hxg6+ {[%emt 0:00:01]} Kxg6 {[%emt 0:00:02]} 20. Nf5 {[%emt 0:00:36]} Rfe8 {[%emt 0:01:18]} 21. Bxh6 {[%emt 0:00:35]} gxh6 {[%emt 0:00:05]} 22. Rh1 {[%emt 0:00:02]} Bf8 {[%emt 0:00:04]} 23. Nh4+ {[%emt 0:00:02]} Kg7 {[%emt 0:00:03]} 24. Qf5 {[%emt 0:00:01]} Re4 {[%emt 0:00:15]} 25. dxc5 {[%emt 0:00:31]} Rf4 {[%emt 0:00:03]} 26. Qg6+ {[%emt 0:00:02]} Kh8 {[%emt 0:00:00]} 27. Qg3 {[%emt 0:00:01]} Nxc5 {[%emt 0:00:03]} 28. Ng6+ {[%emt 0:00:01]} Kh7 {[%emt 0:00:01]} 29. Nxf4 {[%emt 0:00:10]} Nce4 {[%emt 0:00:02]} 30. Qg6+ {[%emt 0:00:07]} Kh8 {[%emt 0:00:01]} 31. Ne6 {[%emt 0:00:11]} Rxd1+ {[%emt 0:00:00]} 32. Rxd1 {[%emt 0:00:01]} Qe7 {[%emt 0:00:02]} 33. Nxf8 {[%emt 0:00:03]} Qxf8 {[%emt 0:00:01]} 34. Qf5 {[%emt 0:00:02]} Qe7 {[%emt 0:00:03]} 35. Qc8+ {[%emt 0:00:02]} Kg7 {[%emt 0:00:00]} 36. f3 {[%emt 0:00:01]} Nf2 {[%emt 0:00:01]} 37. Rc1 {[%emt 0:00:04]} b6 {[%emt 0:00:05]} 38. a3 {[%emt 0:00:02]} Nd5 {[%emt 0:00:03]} 39. Qf5 {[%emt 0:00:02]} Nf6 {[%emt 0:00:01]} 40. g4 {[%emt 0:00:06]} Qe3 {[%emt 0:00:01]} 41. a4 {[%emt 0:00:18]} Nh3 {[%emt 0:00:03]} 42. Rd1 {[%emt 0:00:02]} Nf4 {[%emt 0:00:02]} 43. Qc8 {[%emt 0:00:04]} N4d5 {[%emt 0:00:05]} 44. Qb7+ {[%emt 0:00:02]} Kg6 {[%emt 0:00:01]} 45. Rxd5 {[%emt 0:00:03]} Qe1+ {[%emt 0:00:01]} 46. Ka2 {[%emt 0:00:01]} Nxd5 {[%emt 0:00:06]} 47. Qxd5 {[%emt 0:00:01]} Qe2 {[%emt 0:00:06]} 1-0

[Event "EWIBCC 2019"]
[Site "Monte-Carlo"]
[Date "2019.11.29"]
[Round "6.11"]
[White "Belenkaya, Dina"]
[Black "Paehtz, Elisabeth"]
[Result "0-1"]
[ECO "B23"]
[WhiteElo "2302"]
[BlackElo "2484"]
[Annotator "RC"]
[PlyCount "116"]
[EventDate "2019.11.29"]
[EventType "swiss"]
[EventCountry "MNC"]
[SourceTitle "playchess.com"]
[Source "ChessBase"]
[SourceQuality "1"]
[TimeControl "180+2"]

1. e4 {[%emt 0:00:00]} c5 {[%emt 0:00:00]} 2. Nc3 {[%emt 0:00:01]} a6 {[%emt 0:00:00]} 3. g3 {[%emt 0:00:05]} b5 {[%emt 0:00:01]} 4. Bg2 {[%emt 0:00:05]} Bb7 {[%emt 0:00:00]} 5. d3 {[%emt 0:00:04]} e6 {[%emt 0:00:02]} 6. Nge2 {[%emt 0:00:02]} Nc6 {[%emt 0:00:04]} 7. O-O {[%emt 0:00:03]} d6 {[%emt 0:00:09]} 8. Be3 {[%emt 0:00:06]} Nf6 {[%emt 0:00:02]} 9. h3 {[%emt 0:00:03]} Be7 {[%emt 0:00:04]} 10. f4 {[%emt 0:00:06]} Qc7 {[%emt 0:00:02]} 11. Qd2 {[%emt 0:00:05]} Rd8 {[%emt 0:00:20]} 12. Bf2 {[%emt 0:00:05]} d5 {[%emt 0:00:04]} 13. exd5 {[%emt 0:00:34]} exd5 {[%emt 0:00:02]} 14. g4 {[%emt 0:00:45]} b4 {[%emt 0:00:08]} 15. Na4 {[%emt 0:00:03]} d4 {[%emt 0:00:26]} 16. Bg3 {[%emt 0:00:26]} O-O {[%emt 0:00:10]} 17. a3 {[%emt 0:00:08]} Nd5 {[%emt 0:00:09]} 18. axb4 {[%emt 0:00:18]} Ncxb4 {[%emt 0:00:08]} 19. Rf2 {[%emt 0:00:09]} Ne3 {[%emt 0:00:03]} 20. Bxb7 {[%emt 0:00:03]} Qxb7 {[%emt 0:00:02]} 21. c3 {[%emt 0:00:03]} Nbc2 {[%emt 0:00:10]} 22. Rc1 {[%emt 0:00:01]} Qb3 {[%emt 0:00:03]} 23. cxd4 {[%emt 0:00:04]} Qxa4 {[%emt 0:00:04]} 24. d5 {[%emt 0:00:15]} c4 {[%emt 0:00:10]} 25. Nc3 {[%emt 0:00:01]} Qb3 {[%emt 0:00:06]} 26. dxc4 {[%emt 0:00:06]} Bc5 {[%emt 0:00:05]} 27. Ne4 {[%emt 0:00:02]} Ba7 {[%emt 0:00:04]} 28. Kh2 {[%emt 0:00:05]} Nxg4+ {[%emt 0:00:09]} 29. hxg4 {[%emt 0:00:01]} Bxf2 {[%emt 0:00:02]} 30. Bxf2 {[%emt 0:00:05]} Nb4 {[%emt 0:00:05]} 31. d6 {[%emt 0:00:03]} Qf3 {[%emt 0:00:04]} 32. Ng5 {[%emt 0:00:02]} Qb7 {[%emt 0:00:05]} 33. c5 {[%emt 0:00:01]} h6 {[%emt 0:00:03]} 34. Nh3 {[%emt 0:00:02]} a5 {[%emt 0:00:05]} 35. Qc3 {[%emt 0:00:02]} Qc6 {[%emt 0:00:04]} 36. Bd4 {[%emt 0:00:02]} Rfe8 {[%emt 0:00:08]} 37. Rf1 {[%emt 0:00:05]} Re2+ {[%emt 0:00:01]} 38. Rf2 {[%emt 0:00:00]} Rxf2+ {[%emt 0:00:14]} 39. Nxf2 {[%emt 0:00:07]} f6 {[%emt 0:00:03]} 40. Bxf6 {[%emt 0:00:00]} Nd5 {[%emt 0:00:13]} 41. Qc4 {[%emt 0:00:00]} gxf6 {[%emt 0:00:01]} 42. Ne4 {[%emt 0:00:00]} Kg7 {[%emt 0:00:02]} 43. g5 {[%emt 0:00:01]} hxg5 {[%emt 0:00:01]} 44. fxg5 {[%emt 0:00:01]} Rh8+ {[%emt 0:00:03]} 45. Kg3 {[%emt 0:00:01]} f5 {[%emt 0:00:08]} 46. Nf6 {[%emt 0:00:01]} Nxf6 {[%emt 0:00:03]} 47. gxf6+ {[%emt 0:00:01]} Kg6 {[%emt 0:00:02]} 48. f7 {[%emt 0:00:04]} Qd7 {[%emt 0:00:06]} 49. Qd5 {[%emt 0:00:04]} Rc8 {[%emt 0:00:04]} 50. c6 {[%emt 0:00:03]} Qa7 {[%emt 0:00:06]} 51. Qe6+ {[%emt 0:00:01]} Kg5 {[%emt 0:00:01]} 52. Qe3+ {[%emt 0:00:02]} Kf6 {[%emt 0:00:03]} 53. d7 {[%emt 0:00:01]} Qxe3+ {[%emt 0:00:01]} 54. Kg2 {[%emt 0:00:05]} Rh8 {[%emt 0:00:03]} 55. c7 {[%emt 0:00:02]} Qe2+ {[%emt 0:00:01]} 56. Kg3 {[%emt 0:00:01]} Qg4+ {[%emt 0:00:01]} 57. Kf2 {[%emt 0:00:01]} Qf4+ {[%emt 0:00:01]} 58. Ke2 {[%emt 0:00:03]} Qxc7 {[%emt 0:00:15]} 0-1

[Event "EWIBCC 2019"]
[Site "Monte-Carlo"]
[Date "2019.11.29"]
[Round "6.12"]
[White "Reizniece-Ozola, Dana"]
[Black "Solozhenkina, Elizaveta"]
[Result "1-0"]
[ECO "A22"]
[WhiteElo "2305"]
[BlackElo "2314"]
[Annotator "ChessBase"]
[PlyCount "83"]
[EventDate "2019.11.29"]
[EventType "swiss"]
[EventCountry "MNC"]
[SourceTitle "playchess.com"]
[Source "ChessBase"]
[SourceQuality "1"]
[TimeControl "180+2"]

1. c4 {[%emt 0:00:00]} e5 {[%emt 0:00:00]} 2. Nc3 {[%emt 0:00:00]} Nf6 {[%emt 0:00:01]} 3. g3 {[%emt 0:00:00]} d5 {[%emt 0:00:01]} 4. cxd5 {[%emt 0:00:01]} Nxd5 {[%emt 0:00:01]} 5. Bg2 {[%emt 0:00:01]} Nb6 {[%emt 0:00:02]} 6. e3 {[%emt 0:00:00]} Nc6 {[%emt 0:00:05]} 7. Nge2 {[%emt 0:00:01]} h5 {[%emt 0:00:02]} 8. h4 {[%emt 0:00:13]} Bg4 {[%emt 0:00:10]} 9. f3 {[%emt 0:00:13]} Be6 {[%emt 0:00:29]} 10. d4 {[%emt 0:00:01]} exd4 {[%emt 0:00:17]} 11. exd4 {[%emt 0:00:02]} Nd5 {[%emt 0:00:07]} 12. O-O {[%emt 0:00:29]} Be7 {[%emt 0:00:17]} 13. Ne4 {[%emt 0:00:09]} Qd7 {[%emt 0:00:33]} 14. Bg5 {[%emt 0:00:16]} f6 {[%emt 0:00:04]} 15. Bd2 {[%emt 0:00:18]} O-O-O {[%emt 0:00:11]} 16. Rc1 {[%emt 0:00:03]} Rdg8 {[%emt 0:00:02]} 17. Qa4 {[%emt 0:01:09]} g5 {[%emt 0:01:12]} 18. hxg5 {[%emt 0:00:11]} fxg5 {[%emt 0:00:00]} 19. Nc5 {[%emt 0:00:17]} Bxc5 {[%emt 0:00:00]} 20. Rxc5 {[%emt 0:00:01]} Nb6 {[%emt 0:00:00]} 21. Qd1 {[%emt 0:00:10]} Nxd4 {[%emt 0:00:00]} 22. Bc3 {[%emt 0:00:02]} Nxe2+ 23. Qxe2 {[%emt 0:00:01]} Rh6 {[%emt 0:00:00]} 24. Be5 {[%emt 0:00:01]} c6 {[%emt 0:00:00]} 25. Rd1 {[%emt 0:00:01]} Bd5 {[%emt 0:00:00]} 26. f4 {[%emt 0:00:00]} Qe7 {[%emt 0:00:00]} 27. b4 {[%emt 0:00:02]} gxf4 {[%emt 0:00:05]} 28. Bxd5 {[%emt 0:00:02]} Nxd5 {[%emt 0:00:02]} 29. Rdxd5 {[%emt 0:00:03]} Rxg3+ {[%emt 0:00:01]} 30. Kf1 {[%emt 0:00:02]} Rhg6 {[%emt 0:00:02]} 31. Qxh5 {[%emt 0:00:06]} Rg1+ {[%emt 0:00:09]} 32. Kf2 {[%emt 0:00:00]} R6g2+ {[%emt 0:00:06]} 33. Kf3 {[%emt 0:00:01]} Rg3+ {[%emt 0:00:03]} 34. Ke4 {[%emt 0:00:01]} Re1+ {[%emt 0:00:02]} 35. Kf5 {[%emt 0:00:00]} Qf8+ {[%emt 0:00:06]} 36. Ke6 {[%emt 0:00:02]} Qg8+ {[%emt 0:00:00]} 37. Kf5 {[%emt 0:00:02]} Qf8+ {[%emt 0:00:00]} 38. Ke6 {[%emt 0:00:00]} Qg8+ {[%emt 0:00:01]} 39. Kf5 {[%emt 0:00:01]} Qf8+ {[%emt 0:00:02]} 40. Bf6 {[%emt 0:00:01]} Re8 {[%emt 0:00:04]} 41. Re5 {[%emt 0:00:02]} Rxe5+ 42. Rxe5 1-0

[Event "EWIBCC 2019"]
[Site "Monte-Carlo"]
[Date "2019.11.29"]
[Round "6.15"]
[White "Savina, Anastasia"]
[Black "Benmesbah, Natacha"]
[Result "1-0"]
[ECO "E90"]
[WhiteElo "2354"]
[BlackElo "2265"]
[Annotator "NA"]
[PlyCount "60"]
[EventDate "2019.11.29"]
[EventType "swiss"]
[EventCountry "MNC"]
[SourceTitle "playchess.com"]
[Source "ChessBase"]
[SourceQuality "1"]
[TimeControl "180+2"]

1. d4 {[%emt 0:00:03]} Nf6 {[%emt 0:00:00]} 2. c4 {[%emt 0:00:02]} c5 {[%emt 0:00:00]} 3. d5 {[%emt 0:00:01]} g6 {[%emt 0:00:10]} 4. Nc3 {[%emt 0:00:02]} Bg7 {[%emt 0:00:01]} 5. Nf3 {[%emt 0:00:05]} d6 {[%emt 0:00:01]} 6. h3 {[%emt 0:00:07]} O-O {[%emt 0:00:02]} 7. e4 {[%emt 0:00:01]} e6 {[%emt 0:00:01]} 8. Bd3 {[%emt 0:00:02]} exd5 {[%emt 0:00:01]} 9. exd5 {[%emt 0:00:01]} Re8+ {[%emt 0:00:00]} 10. Be3 {[%emt 0:00:01]} Nbd7 {[%emt 0:00:26]} 11. O-O {[%emt 0:00:05]} a6 {[%emt 0:00:13]} 12. Re1 {[%emt 0:00:17]} Nh5 {[%emt 0:00:10]} 13. Qd2 {[%emt 0:00:31]} Ne5 {[%emt 0:00:05]} 14. Nxe5 {[%emt 0:00:06]} Rxe5 {[%emt 0:00:01]} 15. g4 {[%emt 0:00:17]} Qh4 {[%emt 0:00:28]} 16. Bf1 {[%emt 0:00:17]} Bxg4 {[%emt 0:00:03]} 17. hxg4 {[%emt 0:00:02]} Qxg4+ {[%emt 0:00:01]} 18. Bg2 {[%emt 0:00:01]} Rae8 {[%emt 0:00:06]} 19. Ne2 {[%emt 0:00:19]} f5 {[%emt 0:00:47]} 20. Kf1 {[%emt 0:00:47]} Qxc4 {[%emt 0:00:04]} 21. Rac1 {[%emt 0:00:03]} Qh4 {[%emt 0:00:20]} 22. Bg5 {[%emt 0:00:06]} Qg4 {[%emt 0:00:15]} 23. f3 {[%emt 0:00:22]} Qa4 {[%emt 0:00:19]} 24. b3 {[%emt 0:00:05]} Qb5 {[%emt 0:00:01]} 25. a4 {[%emt 0:00:01]} Qxb3 {[%emt 0:00:02]} 26. Nf4 {[%emt 0:00:04]} Rxe1+ {[%emt 0:00:10]} 27. Rxe1 {[%emt 0:00:01]} Qc4+ {[%emt 0:00:02]} 28. Kg1 {[%emt 0:00:03]} Rxe1+ {[%emt 0:00:04]} 29. Qxe1 {[%emt 0:00:01]} Nxf4 {[%emt 0:00:05]} 30. Qe8+ {[%emt 0:00:07]} Bf8 1-0

[Event "EWIBCC 2019"]
[Site "Monte-Carlo"]
[Date "2019.11.29"]
[Round "6.16"]
[White "Mkrtchian, Lilit"]
[Black "Gaprindashvili, Nona"]
[Result "1-0"]
[ECO "A41"]
[WhiteElo "2402"]
[BlackElo "2275"]
[Annotator "ChessBase"]
[PlyCount "119"]
[EventDate "2019.11.29"]
[EventType "swiss"]
[EventCountry "MNC"]
[SourceTitle "playchess.com"]
[Source "ChessBase"]
[SourceQuality "1"]
[TimeControl "180+2"]

1. c4 {[%emt 0:00:00]} d6 {[%emt 0:00:02]} 2. Nc3 {[%emt 0:00:02]} e5 {[%emt 0:00:01]} 3. g3 {[%emt 0:00:06]} g6 {[%emt 0:00:03]} 4. d4 {[%emt 0:00:03]} Nd7 {[%emt 0:00:01]} 5. Bg2 {[%emt 0:00:07]} Bg7 {[%emt 0:00:02]} 6. Nf3 {[%emt 0:00:04]} Nh6 {[%emt 0:00:03]} 7. h4 {[%emt 0:00:50]} f6 {[%emt 0:00:02]} 8. h5 {[%emt 0:00:08]} Nf7 {[%emt 0:00:02]} 9. hxg6 {[%emt 0:00:05]} hxg6 {[%emt 0:00:02]} 10. Rxh8+ {[%emt 0:00:05]} Bxh8 {[%emt 0:00:08]} 11. Nh4 {[%emt 0:00:18]} Nf8 {[%emt 0:00:06]} 12. Be3 {[%emt 0:00:31]} c6 {[%emt 0:00:02]} 13. Qd2 {[%emt 0:00:04]} Bd7 {[%emt 0:00:10]} 14. O-O-O {[%emt 0:00:04]} Qa5 {[%emt 0:00:12]} 15. Kb1 {[%emt 0:00:03]} O-O-O {[%emt 0:00:07]} 16. d5 {[%emt 0:00:22]} c5 {[%emt 0:00:03]} 17. Qc2 {[%emt 0:00:14]} f5 {[%emt 0:00:06]} 18. Bc1 {[%emt 0:00:03]} Bf6 {[%emt 0:00:03]} 19. Rh1 {[%emt 0:00:05]} e4 {[%emt 0:02:23]} 20. Bd2 {[%emt 0:00:05]} Qa6 {[%emt 0:00:00]} 21. b3 {[%emt 0:00:03]} g5 {[%emt 0:00:00]} 22. Nxf5 {[%emt 0:00:10]} Bxc3 {[%emt 0:00:00]} 23. Ne7+ {[%emt 0:00:01]} Kc7 {[%emt 0:00:00]} 24. Bxc3 {[%emt 0:00:01]} Re8 {[%emt 0:00:00]} 25. Ng8 {[%emt 0:00:01]} Bf5 {[%emt 0:00:00]} 26. Nf6 {[%emt 0:00:01]} Re7 {[%emt 0:00:00]} 27. Bxe4 {[%emt 0:00:03]} Bxe4 {[%emt 0:00:00]} 28. Nxe4 {[%emt 0:00:01]} b5 {[%emt 0:00:00]} 29. cxb5 {[%emt 0:00:03]} Qxb5 {[%emt 0:00:00]} 30. f3 {[%emt 0:00:03]} Nd7 {[%emt 0:00:00]} 31. Rh7 {[%emt 0:00:02]} a5 {[%emt 0:00:00]} 32. a4 {[%emt 0:00:05]} Qb7 {[%emt 0:00:00]} 33. Bxa5+ {[%emt 0:00:01]} Kb8 {[%emt 0:00:00]} 34. Qb2 {[%emt 0:00:06]} Qxd5 {[%emt 0:00:00]} 35. Nc3 {[%emt 0:00:05]} Qf5+ {[%emt 0:00:32]} 36. Qc2 Qxh7 {[%emt 0:00:00]} 37. Qxh7 {[%emt 0:00:03]} Kb7 {[%emt 0:00:00]} 38. Qg7 {[%emt 0:00:02]} Nde5 {[%emt 0:00:00]} 39. Qf6 {[%emt 0:00:01]} Rd7 {[%emt 0:00:00]} 40. Nd5 {[%emt 0:00:01]} c4 {[%emt 0:00:00]} 41. Bc3 {[%emt 0:00:02]} Nc6 {[%emt 0:00:12]} 42. b4 {[%emt 0:00:02]} Nfe5 {[%emt 0:00:00]} 43. Bxe5 {[%emt 0:00:02]} dxe5 {[%emt 0:00:00]} 44. Nc3 {[%emt 0:00:01]} Nxb4 {[%emt 0:00:00]} 45. Qxe5 {[%emt 0:00:01]} Nc6 {[%emt 0:00:00]} 46. Qb5+ {[%emt 0:00:01]} Kc7 {[%emt 0:00:00]} 47. Qxc4 {[%emt 0:00:01]} Rd4 {[%emt 0:00:00]} 48. Nb5+ {[%emt 0:00:01]} Kb6 {[%emt 0:00:00]} 49. Nxd4 {[%emt 0:00:02]} Nxd4 {[%emt 0:00:00]} 50. Qxd4+ {[%emt 0:00:00]} Kc6 {[%emt 0:00:00]} 51. Qf6+ {[%emt 0:00:02]} Kd5 {[%emt 0:00:00]} 52. Qxg5+ {[%emt 0:00:01]} Kc4 {[%emt 0:00:00]} 53. Qb5+ {[%emt 0:00:02]} Kd4 {[%emt 0:00:00]} 54. a5 {[%emt 0:00:01]} Ke3 {[%emt 0:00:00]} 55. a6 {[%emt 0:00:00]} Kf2 {[%emt 0:00:00]} 56. a7 {[%emt 0:00:01]} Kg2 {[%emt 0:00:00]} 57. a8=Q {[%emt 0:00:02]} Kg1 {[%emt 0:00:00]} 58. Qa7+ {[%emt 0:00:02]} Kf1 {[%emt 0:00:00]} 59. e4+ {[%emt 0:00:01]} Kg2 {[%emt 0:00:00]} 60. Qe2+ {[%emt 0:00:23]} 1-0

[Event "EWIBCC 2019"]
[Site "Monte-Carlo"]
[Date "2019.11.29"]
[Round "6.17"]
[White "Limanovska, Elizabete"]
[Black "Worek, Joanna"]
[Result "1-0"]
[ECO "B31"]
[WhiteElo "2178"]
[BlackElo "2316"]
[Annotator "ChessBase"]
[PlyCount "107"]
[EventDate "2019.11.29"]
[EventType "swiss"]
[EventCountry "MNC"]
[SourceTitle "playchess.com"]
[Source "ChessBase"]
[SourceQuality "1"]
[TimeControl "180+2"]

1. e4 {[%emt 0:00:00]} c5 {[%emt 0:00:00]} 2. Nf3 {[%emt 0:00:00]} Nc6 {[%emt 0:00:00]} 3. Bb5 {[%emt 0:00:05]} g6 {[%emt 0:00:01]} 4. Bxc6 {[%emt 0:00:02]} dxc6 {[%emt 0:00:01]} 5. d3 {[%emt 0:00:11]} Bg7 {[%emt 0:00:02]} 6. O-O {[%emt 0:00:04]} e5 {[%emt 0:00:03]} 7. a3 {[%emt 0:00:04]} Qe7 {[%emt 0:00:20]} 8. b4 {[%emt 0:00:08]} Nf6 {[%emt 0:00:08]} 9. Nbd2 {[%emt 0:00:10]} O-O {[%emt 0:00:07]} 10. Nc4 {[%emt 0:00:04]} Nd7 {[%emt 0:00:17]} 11. Qe2 {[%emt 0:00:23]} h6 {[%emt 0:00:07]} 12. bxc5 {[%emt 0:02:13]} Nxc5 {[%emt 0:02:18]} 13. Be3 {[%emt 0:00:00]} b5 {[%emt 0:00:00]} 14. Ncd2 {[%emt 0:00:00]} Ne6 {[%emt 0:00:00]} 15. Nb3 {[%emt 0:00:00]} a5 {[%emt 0:00:00]} 16. a4 {[%emt 0:00:00]} b4 {[%emt 0:00:00]} 17. Qd2 {[%emt 0:00:00]} Kh7 {[%emt 0:00:00]} 18. Ne1 {[%emt 0:00:00]} Ba6 {[%emt 0:00:00]} 19. Nxa5 {[%emt 0:00:00]} Qd6 {[%emt 0:00:00]} 20. Nb3 {[%emt 0:00:00]} f5 {[%emt 0:00:00]} 21. exf5 {[%emt 0:00:00]} gxf5 {[%emt 0:00:00]} 22. Rb1 {[%emt 0:00:00]} f4 {[%emt 0:00:00]} 23. Bb6 {[%emt 0:00:00]} Ng5 {[%emt 0:00:00]} 24. Bc5 {[%emt 0:00:07]} Qg6 {[%emt 0:00:00]} 25. f3 {[%emt 0:00:02]} Rfd8 {[%emt 0:00:00]} 26. Qe2 {[%emt 0:00:03]} Re8 {[%emt 0:00:00]} 27. Nd2 {[%emt 0:00:07]} Bb7 {[%emt 0:00:00]} 28. Rxb4 {[%emt 0:00:02]} Bc8 {[%emt 0:00:00]} 29. Kh1 {[%emt 0:00:02]} Ra5 {[%emt 0:00:00]} 30. Bb6 {[%emt 0:00:03]} Ra8 {[%emt 0:00:00]} 31. Ne4 {[%emt 0:00:01]} Nf7 {[%emt 0:00:00]} 32. a5 {[%emt 0:00:03]} Ba6 {[%emt 0:00:00]} 33. Nc5 {[%emt 0:00:03]} Bb5 {[%emt 0:00:00]} 34. c4 {[%emt 0:00:01]} Ba6 {[%emt 0:00:00]} 35. Nxa6 Rxa6 {[%emt 0:00:00]} 36. Qe4 {[%emt 0:00:05]} Nd6 {[%emt 0:00:00]} 37. Qxg6+ {[%emt 0:00:02]} Kxg6 {[%emt 0:00:00]} 38. Rf2 {[%emt 0:00:02]} Nf5 {[%emt 0:00:00]} 39. Kg1 {[%emt 0:00:02]} Bf8 {[%emt 0:00:00]} 40. Rb1 {[%emt 0:00:02]} Ne3 {[%emt 0:00:00]} 41. Nc2 {[%emt 0:00:01]} Nf5 {[%emt 0:00:00]} 42. Kf1 {[%emt 0:00:01]} Rb8 {[%emt 0:00:00]} 43. Nb4 {[%emt 0:00:05]} Bxb4 {[%emt 0:00:00]} 44. Rxb4 {[%emt 0:00:01]} Ne3+ {[%emt 0:00:00]} 45. Ke2 {[%emt 0:00:02]} Nc2 {[%emt 0:00:00]} 46. Rb2 {[%emt 0:00:01]} Nd4+ {[%emt 0:00:00]} 47. Bxd4 {[%emt 0:00:01]} Rxb2+ 48. Bxb2 {[%emt 0:00:01]} Kf5 {[%emt 0:00:00]} 49. Bc3 {[%emt 0:00:01]} Ra8 {[%emt 0:00:02]} 50. Rf1 {[%emt 0:00:01]} Rb8 {[%emt 0:00:01]} 51. Ra1 {[%emt 0:00:01]} h5 {[%emt 0:00:08]} 52. a6 {[%emt 0:00:01]} Ra8 {[%emt 0:00:01]} 53. a7 {[%emt 0:00:01]} h4 {[%emt 0:00:01]} 54. Ra5 {[%emt 0:00:01]} 1-0